bitfinex/quotes_BTCUSD_20241117
["timestamp","ask_amount","ask_price","bid_price","bid_amount"]
[1731835256487,0.21068755,91220.0,91219.0,0.94702437]
[1731835256724,0.10106255,91220.0,91219.0,0.95546]
[1731835257212,0.21068755,91220.0,91219.0,0.95546]
[1731835259762,0.21068755,91220.0,91219.0,0.9520335]
[1731835259976,0.21068755,91220.0,91219.0,0.93009944]
[1731835260219,0.21068755,91220.0,91219.0,0.95203355]
[1731835260692,0.21068755,91220.0,91219.0,0.9554599]
[1731835261376,0.21068755,91220.0,91219.0,0.95203355]
[1731835262549,0.21068755,91220.0,91219.0,0.93853509]
[1731835263239,0.21068755,91220.0,91219.0,0.93009944]
[1731835263924,0.23368755,91220.0,91219.0,0.93009944]
[1731835264143,0.41501061,91220.0,91219.0,0.93009944]
[1731835264388,0.44920273,91220.0,91219.0,0.93009944]
[1731835264640,0.54920273,91220.0,91219.0,0.93009944]
[1731835264864,0.59475576,91220.0,91219.0,0.93009944]
[1731835265590,0.59561266,91220.0,91219.0,0.93009944]
[1731835266292,0.60061266,91220.0,91219.0,0.93009944]
[1731835267009,1.16040833,91220.0,91219.0,0.93009944]
[1731835267236,0.96388745,91220.0,91219.0,0.93009944]
[1731835267456,0.95588745,91220.0,91219.0,0.93009944]
[1731835268115,1.00238745,91220.0,91219.0,0.93009944]
[1731835268573,1.29716877,91220.0,91219.0,0.93009944]
[1731835268828,1.00238745,91220.0,91219.0,0.93009944]
[1731835269279,1.54808745,91220.0,91219.0,0.77165549]
[1731835269543,1.54808745,91220.0,91219.0,0.74973049]
[1731835269776,1.65715,91220.0,91219.0,0.74973049]
[1731835270001,1.54808745,91220.0,91219.0,0.74958455]
[1731835270250,1.52508745,91220.0,91219.0,0.74958455]
[1731835270506,1.20857707,91220.0,91219.0,0.74958455]
[1731835270730,0.42969748,91220.0,91219.0,0.74958455]
[1731835271170,0.58192054,91220.0,91219.0,0.74958455]
[1731835271389,0.86190384,91220.0,91219.0,0.74958455]
[1731835271620,1.52474108,91220.0,91219.0,0.74958455]
[1731835271833,1.52474108,91220.0,91219.0,0.63995955]
[1731835272091,1.52474108,91220.0,91219.0,0.18283383]
[1731835272313,1.65680363,91220.0,91219.0,0.10473383]
[1731835272564,0.241828,91217.0,91216.0,8e-08]
[1731835272773,0.50804681,91217.0,91216.0,8e-08]
[1731835273004,0.87086514,91217.0,91216.0,8e-08]
[1731835275083,0.198245,91203.0,91167.0,0.0804]
[1731835275317,0.57793061,91203.0,91167.0,0.0804]
[1731835275543,0.57793061,91203.0,91202.0,0.16584026]
[1731835275789,1.12363061,91203.0,91202.0,0.162689]
[1731835276188,1.22178202,91203.0,91202.0,0.162689]
[1731835276449,1.12363061,91203.0,91202.0,0.162689]
[1731835277149,1.26622623,91203.0,91202.0,0.162689]
[1731835277397,1.16807024,91203.0,91202.0,0.162689]
[1731835277846,1.16307024,91203.0,91202.0,0.162689]
[1731835278086,1.16807024,91203.0,91202.0,0.162689]
[1731835279520,1.06234718,91203.0,91202.0,0.162689]
[1731835279731,0.94184718,91203.0,91202.0,0.162689]
[1731835280181,0.93684718,91203.0,91202.0,0.162689]
[1731835280669,0.39114718,91203.0,91202.0,0.162689]
[1731835280893,0.24670755,91203.0,91202.0,0.162689]
[1731835281118,0.22370755,91203.0,91202.0,0.16585841]
[1731835282020,0.32370755,91203.0,91202.0,0.16585841]
[1731835282485,0.33870755,91203.0,91202.0,0.16585841]
[1731835284075,0.31570755,91203.0,91202.0,0.16585841]
[1731835284294,0.21070755,91203.0,91202.0,0.24405841]
[1731835284808,0.10906255,91203.0,91202.0,0.24405841]
[1731835285062,0.10906255,91203.0,91202.0,0.40200441]
[1731835285510,0.0058569,91220.0,91202.0,0.29235841]
[1731835285511,0.0008569,91220.0,91202.0,0.29235841]
[1731835285732,0.10906255,91219.0,91213.0,0.002]
[1731835285992,0.10906255,91219.0,91217.0,0.109628]
[1731835286215,0.10906255,91219.0,91214.0,0.219263]
[1731835286428,0.21868855,91219.0,91218.0,0.0031428]
[1731835286655,0.21868855,91219.0,91211.0,0.109635]
[1731835286876,0.109628,91218.0,91211.0,0.109635]
[1731835287099,0.10906255,91217.0,91211.0,0.109635]
[1731835287346,0.10906255,91217.0,91215.0,0.10963]
[1731835287608,0.10906255,91217.0,91214.0,0.109632]
[1731835287844,0.10906255,91217.0,91212.0,0.109634]
[1731835288095,0.10906255,91215.0,91208.0,0.0782]
[1731835288308,0.109638,91209.0,91208.0,0.0782]
[1731835288549,0.109638,91209.0,91200.0,0.0818]
[1731835288550,0.10906255,91209.0,91200.0,0.0818]
[1731835288784,0.109645,91203.0,91200.0,0.0818]
[1731835289020,0.10906255,91203.0,91200.0,0.0818]
[1731835289243,0.21870755,91203.0,91202.0,0.162689]
[1731835289715,0.10906255,91203.0,91202.0,0.162689]
[1731835290383,0.21870755,91203.0,91202.0,0.162689]
[1731835292529,0.24170755,91203.0,91202.0,0.162689]
[1731835293752,0.35170755,91203.0,91202.0,0.162689]
[1731835296523,0.54670755,91203.0,91202.0,0.162689]
[1731835297427,0.51070755,91203.0,91202.0,0.162689]
[1731835298819,0.51570755,91203.0,91202.0,0.162689]
[1731835299293,0.53870755,91203.0,91202.0,0.162689]
[1731835300448,0.53870755,91203.0,91202.0,0.1635461]
[1731835300672,0.66892175,91203.0,91202.0,0.1635461]
[1731835302087,0.67392175,91203.0,91202.0,0.1635461]
[1731835304125,0.44042175,91203.0,91202.0,0.1635461]
[1731835304348,0.43542175,91203.0,91202.0,0.1635461]
[1731835304569,0.44042175,91203.0,91202.0,0.1635461]
[1731835308568,0.41742175,91203.0,91202.0,0.1635461]
[1731835308814,0.41242175,91203.0,91202.0,0.1635461]
[1731835312516,0.40442175,91203.0,91202.0,0.1635461]
[1731835314732,0.40942175,91203.0,91202.0,0.1635461]
[1731835315865,0.29477675,91203.0,91202.0,0.2404461]
[1731835316079,0.29477675,91203.0,91202.0,0.3988921]
[1731835316343,0.29477675,91203.0,91202.0,0.40422687]
[1731835319578,0.2017142,91203.0,91202.0,0.40422687]
[1731835319797,0.1967142,91203.0,91202.0,0.40422687]
[1731835320029,0.1967142,91203.0,91202.0,0.41065566]
[1731835320287,0.1967142,91203.0,91202.0,0.41265566]
[1731835320510,0.1967142,91203.0,91202.0,0.41608223]
[1731835321615,0.1967142,91203.0,91202.0,0.41608224]
[1731835321835,0.1967142,91203.0,91202.0,0.41408224]
[1731835322063,0.1967142,91203.0,91202.0,0.41607934]
[1731835322297,0.1967142,91203.0,91202.0,0.41265276]
[1731835322515,0.1967142,91203.0,91202.0,0.41607931]
[1731835323200,0.1967142,91203.0,91202.0,0.41265276]
[1731835323450,0.1967142,91203.0,91202.0,0.36185276]
[1731835323909,0.30577675,91203.0,91202.0,0.35342687]
[1731835324659,0.30577675,91203.0,91202.0,0.35542687]
[1731835325547,0.30577675,91203.0,91202.0,0.35342687]
[1731835325759,0.30577675,91203.0,91202.0,0.24378087]
[1731835326941,0.30577675,91203.0,91202.0,0.16688087]
[1731835327158,0.30577675,91203.0,91202.0,0.27652687]
[1731835327377,0.1887142,91203.0,91202.0,0.35542687]
[1731835332006,0.1887142,91203.0,91202.0,0.35342687]
[1731835332216,0.40742175,91203.0,91202.0,0.16688087]
[1731835332444,0.29777675,91203.0,91202.0,0.16688087]
[1731835332683,0.40742175,91203.0,91202.0,0.16688087]
[1731835332904,0.40742175,91203.0,91202.0,0.1635461]
[1731835333374,0.40742175,91203.0,91202.0,0.16683021]
[1731835337331,0.43042175,91203.0,91202.0,0.16683021]
[1731835337576,0.55562175,91203.0,91202.0,0.16683021]
[1731835337784,0.55562175,91203.0,91202.0,0.1635461]
[1731835338002,0.56062175,91203.0,91202.0,0.1635461]
[1731835338731,0.56062175,91203.0,91202.0,0.1667018]
[1731835340197,0.55562175,91203.0,91202.0,0.1667018]
[1731835340405,0.56062175,91203.0,91202.0,0.1667018]
[1731835340651,0.56062175,91203.0,91202.0,0.1635461]
[1731835342530,0.55262175,91203.0,91202.0,0.1635461]
[1731835342924,0.39942175,91203.0,91202.0,0.1635461]
[1731835343372,0.39942175,91203.0,91202.0,0.16670577]
[1731835346041,0.28977675,91203.0,91202.0,0.16670577]
[1731835346281,0.1807142,91203.0,91202.0,0.16670577]
[1731835346500,0.1807142,91203.0,91202.0,0.27635177]
[1731835347363,0.1807142,91203.0,91202.0,0.35925177]
[1731835347817,0.1807142,91203.0,91202.0,0.06707184]
[1731835348034,0.1807142,91203.0,91202.0,0.18001956]
[1731835348465,0.1807142,91203.0,91202.0,0.18201956]
[1731835350453,0.1807142,91203.0,91202.0,0.00530172]
[1731835350682,0.28977675,91203.0,91202.0,0.00330172]
[1731835350942,0.28977675,91203.0,91197.0,0.001713]
[1731835351169,0.109648,91201.0,91197.0,0.001713]
[1731835351396,0.10906255,91200.0,91198.0,0.002]
[1731835352086,0.10906255,91200.0,91199.0,0.002]
[1731835352317,0.10906255,91200.0,91199.0,0.00529497]
[1731835355140,0.10906255,91200.0,91199.0,0.00329497]
[1731835355363,0.21871155,91200.0,91197.0,0.001713]
[1731835355584,0.109651,91198.0,91197.0,0.001713]
[1731835355804,0.21871355,91198.0,91197.0,0.001713]
[1731835356070,0.10906255,91198.0,91197.0,0.001713]
[1731835356968,0.21871355,91198.0,91197.0,0.001713]
[1731835357188,0.10906255,91198.0,91197.0,0.001713]
[1731835357414,0.10106255,91198.0,91197.0,0.001713]
[1731835359046,0.21071355,91198.0,91197.0,0.001713]
[1731835359498,0.10106255,91198.0,91197.0,0.001713]
[1731835359869,0.21071355,91198.0,91197.0,0.001713]
[1731835363560,0.23371355,91198.0,91197.0,0.001713]
[1731835364234,0.72430428,91198.0,91197.0,0.001713]
[1731835364463,0.36061355,91198.0,91197.0,0.001713]
[1731835364899,0.92117761,91198.0,91197.0,0.001713]
[1731835365339,0.72418433,91198.0,91197.0,0.001713]
[1731835365571,0.50829626,91198.0,91197.0,0.001713]
[1731835365797,0.36061355,91198.0,91197.0,0.001713]
[1731835366266,0.50829626,91198.0,91197.0,0.001713]
[1731835366490,0.36061355,91198.0,91197.0,0.001713]
[1731835366973,0.45904233,91198.0,91197.0,0.001713]
[1731835367186,0.36061355,91198.0,91197.0,0.001713]
[1731835367403,0.45902342,91198.0,91197.0,0.001713]
[1731835368039,0.45902464,91198.0,91197.0,0.001713]
[1731835368477,0.36061355,91198.0,91197.0,0.001713]
[1731835370275,0.36232775,91198.0,91197.0,0.001713]
[1731835370727,0.46573884,91198.0,91197.0,0.001713]
[1731835370945,0.46570201,91198.0,91197.0,0.001713]
[1731835371162,0.51501046,91198.0,91197.0,0.001713]
[1731835371377,0.36732775,91198.0,91197.0,0.001713]
[1731835372040,0.76960149,91198.0,91197.0,0.001713]
[1731835372512,0.76160149,91198.0,91197.0,0.001713]
[1731835372731,0.95829079,91198.0,91197.0,0.001713]
[1731835372955,1.05829079,91198.0,91197.0,0.001713]
[1731835373446,1.05825377,91198.0,91197.0,0.001713]
[1731835373667,0.86160149,91198.0,91197.0,0.001713]
[1731835375235,1.10784309,91198.0,91197.0,0.001713]
[1731835375473,1.1073585,91198.0,91197.0,0.001713]
[1731835376124,0.86160149,91198.0,91197.0,0.001713]
[1731835376544,1.40730149,91198.0,91197.0,0.001713]
[1731835379458,1.60388101,91198.0,91197.0,0.001713]
[1731835379677,1.56971535,91198.0,91197.0,0.001713]
[1731835379902,1.60384134,91198.0,91197.0,0.001713]
[1731835380572,1.65301883,91198.0,91197.0,1e-06]
[1731835380793,1.40726182,91198.0,91197.0,1e-06]
[1731835382524,0.219348,91179.0,91158.0,0.002]
[1731835382761,0.005,91185.0,91158.0,0.002]
[1731835382762,0.219353,91177.0,91158.0,0.002]
[1731835382991,0.005,91185.0,91162.0,0.002]
[1731835382992,0.219358,91175.0,91162.0,0.002]
[1731835383245,0.219358,91175.0,91159.0,0.00301006]
[1731835383246,0.10906255,91174.0,91159.0,0.00501006]
[1731835383483,0.10906255,91174.0,91159.0,0.002]
[1731835383717,0.10906255,91174.0,91150.0,0.13076742]
[1731835383718,0.109702,91156.0,91150.0,0.03007]
[1731835383959,0.21876455,91156.0,91150.0,0.03007]
[1731835384200,0.21876455,91156.0,91153.0,0.002]
[1731835384420,0.21876455,91156.0,91150.0,0.03007]
[1731835384421,0.21876455,91156.0,91150.0,0.139779]
[1731835384642,0.21876455,91156.0,91153.0,0.002]
[1731835384902,0.21876455,91156.0,91150.0,0.139778]
[1731835385121,0.21876455,91156.0,91154.0,0.0503]
[1731835385593,0.21876455,91156.0,91155.0,0.08299275]
[1731835385828,0.10906255,91156.0,91155.0,0.08299275]
[1731835386054,0.10906255,91156.0,91155.0,0.08499275]
[1731835386284,0.21876455,91156.0,91155.0,0.08499275]
[1731835386741,0.10906255,91156.0,91155.0,0.08499275]
[1731835386961,0.21876455,91156.0,91155.0,0.08499275]
[1731835387190,0.21876455,91156.0,91155.0,0.08299275]
[1731835387425,0.10106255,91156.0,91155.0,0.19269575]
[1731835387647,0.10106255,91156.0,91155.0,0.08499275]
[1731835388135,0.109689,91167.0,91162.0,0.109694]
[1731835388369,0.10906255,91166.0,91160.0,0.109696]
[1731835388598,0.10906255,91166.0,91163.0,0.00303305]
[1731835388826,0.109692,91164.0,91159.0,0.111698]
[1731835389056,0.109691,91165.0,91164.0,0.00303123]
[1731835389289,0.16430164,91169.0,91159.0,0.111698]
[1731835389525,0.16430164,91169.0,91156.0,0.219404]
[1731835389756,0.109693,91164.0,91160.0,0.00303761]
[1731835389987,0.10906255,91163.0,91160.0,0.109697]
[1731835390179,0.10906255,91163.0,91161.0,0.00303214]
[1731835390440,0.109694,91162.0,91161.0,0.00303214]
[1731835390708,0.21875655,91162.0,91161.0,0.00303214]
[1731835390938,0.109701,91157.0,91155.0,0.08]
[1731835391159,0.10906255,91156.0,91155.0,0.08]
[1731835391620,0.10906255,91156.0,91155.0,0.189703]
[1731835392069,0.10906255,91156.0,91155.0,0.08]
[1731835392585,0.109708,91151.0,91145.0,0.002]
[1731835392812,0.109708,91151.0,91144.0,0.0786]
[1731835392813,0.21877055,91151.0,91144.0,0.0786]
[1731835393040,0.21877055,91151.0,91137.0,0.0786]
[1731835393296,0.21877055,91151.0,91150.0,0.02507]
[1731835393964,0.29367055,91151.0,91150.0,0.02507]
[1731835394192,0.37167055,91151.0,91150.0,0.02507]
[1731835394875,0.37667055,91151.0,91150.0,0.02507]
[1731835395793,0.42048772,91151.0,91150.0,0.0267844]
[1731835399231,0.42048772,91151.0,91128.0,0.219469]
[1731835399232,0.005,91149.0,91131.0,0.07910077]
[1731835399455,0.219435,91143.0,91132.0,0.00274404]
[1731835399681,0.19171717,91151.0,91120.0,0.219489]
[1731835399682,0.10906255,91142.0,91130.0,0.10069742]
[1731835399906,0.10906255,91142.0,91133.0,0.1272]
[1731835400124,0.16430164,91140.0,91138.0,0.109722]
[1731835400344,0.219423,91148.0,91134.0,0.00273432]
[1731835400345,0.10906255,91139.0,91134.0,0.00273432]
[1731835400556,0.10906255,91139.0,91133.0,0.346658]
[1731835400767,0.10906255,91139.0,91138.0,0.109723]
[1731835401027,0.10906255,91139.0,91136.0,0.109725]
[1731835402139,0.10906255,91139.0,91133.0,0.1272]
[1731835402361,0.10106255,91139.0,91137.0,0.109724]
[1731835402841,0.10106255,91139.0,91133.0,0.1272]
[1731835402842,0.10106255,91139.0,91135.0,0.109727]
[1731835403064,0.10106255,91139.0,91133.0,0.1272]
[1731835403293,0.10106255,91139.0,91136.0,0.109725]
[1731835403728,0.10106255,91139.0,91133.0,0.1272]
[1731835403938,0.10106255,91139.0,91135.0,0.219454]
[1731835404603,0.10106255,91139.0,91136.0,0.219452]
[1731835404844,0.10106255,91139.0,91138.0,0.109723]
[1731835405299,0.10106255,91139.0,91138.0,0.21042042]
[1731835406163,0.16430164,91153.0,91152.0,0.109706]
[1731835406401,0.16430164,91153.0,91152.0,0.189606]
[1731835406402,0.27336419,91153.0,91152.0,0.189606]
[1731835406623,0.10906255,91153.0,91152.0,0.189606]
[1731835406821,0.219365,91173.0,91152.0,0.189606]
[1731835406822,0.109684,91171.0,91162.0,0.109694]
[1731835407028,0.27336419,91163.0,91162.0,0.109694]
[1731835407240,0.10906255,91163.0,91162.0,0.109694]
[1731835410918,0.10906255,91163.0,91162.0,0.21039142]
[1731835411353,0.16430164,91183.0,91163.0,0.0753]
[1731835411575,0.16430164,91183.0,91182.0,0.10967]
[1731835412257,0.16430164,91183.0,91175.0,0.219356]
[1731835412258,0.109659,91192.0,91186.0,0.109665]
[1731835412540,0.109657,91193.0,91186.0,0.109664]
[1731835412796,0.109659,91192.0,91186.0,0.109664]
[1731835413011,0.109659,91192.0,91187.0,0.00266147]
[1731835413236,0.219315,91193.0,91187.0,0.00266147]
[1731835413456,0.219315,91193.0,91180.0,0.219345]
[1731835413710,0.109664,91188.0,91181.0,0.11233793]
[1731835414378,0.109664,91188.0,91182.0,0.10967]
[1731835414824,0.109664,91188.0,91180.0,0.219345]
[1731835414825,0.219315,91193.0,91185.0,0.109667]
[1731835415043,0.10906255,91187.0,91186.0,0.109665]
[1731835415256,0.10906255,91187.0,91186.0,0.11232738]
[1731835416972,0.10899697,91187.0,91186.0,0.11120782]
[1731835417414,0.10099697,91187.0,91186.0,0.11120782]
[1731835417626,0.10099697,91187.0,91186.0,0.21190524]
[1731835417844,0.0017142,91198.0,91188.0,0.219325]
[1731835418076,0.10906255,91197.0,91196.0,0.109653]
[1731835418293,0.10906255,91197.0,91196.0,0.1122422]
[1731835418504,0.10906255,91197.0,91196.0,0.0025892]
[1731835418734,0.10906255,91197.0,91191.0,0.219318]
[1731835418946,0.10906255,91197.0,91196.0,0.0025892]
[1731835419163,0.10906255,91197.0,91196.0,0.109653]
[1731835419395,0.10906255,91197.0,91196.0,0.1122422]
[1731835419820,0.10906255,91197.0,91196.0,0.0025892]
[1731835420130,0.10906255,91197.0,91194.0,0.109655]
[1731835420335,0.10906255,91197.0,91196.0,0.1122422]
[1731835420703,0.10906255,91197.0,91181.0,0.300941]
[1731835420704,0.10906255,91197.0,91195.0,0.00259011]
[1731835420886,0.10906255,91197.0,91188.0,0.219326]
[1731835420887,0.10906255,91197.0,91196.0,0.0025892]
[1731835421339,0.10906255,91197.0,91188.0,0.219326]
[1731835421340,0.10906255,91197.0,91193.0,0.109657]
[1731835421746,0.10906255,91197.0,91194.0,0.00259102]
[1731835422450,0.10906255,91197.0,91181.0,0.0816]
[1731835422704,0.109653,91196.0,91195.0,0.00259011]
[1731835422909,0.109653,91196.0,91185.0,0.219334]
[1731835422910,0.21871555,91196.0,91185.0,0.219334]
[1731835423141,0.21871755,91195.0,91188.0,0.109662]
[1731835423362,0.10906255,91195.0,91189.0,0.109661]
[1731835423578,0.109657,91194.0,91189.0,0.00259375]
[1731835423796,0.10906255,91193.0,91189.0,0.00259375]
[1731835424026,0.10906255,91193.0,91188.0,0.109663]
[1731835424235,0.10906255,91193.0,91190.0,0.00259102]
[1731835424459,0.10906255,91193.0,91189.0,0.11225293]
[1731835424673,0.10906255,91193.0,91191.0,0.00259011]
[1731835424880,0.10906255,91193.0,91190.0,0.00259102]
[1731835425088,0.10906255,91193.0,91192.0,0.0025892]
[1731835425306,0.10906255,91193.0,91191.0,0.00258928]
[1731835425530,0.10906255,91193.0,91184.0,0.219336]
[1731835425531,0.21871955,91193.0,91192.0,0.0025892]
[1731835425755,0.10906255,91193.0,91192.0,0.0025892]
[1731835425969,0.10906255,91193.0,91187.0,0.109664]
[1731835426181,0.10906255,91193.0,91192.0,0.00258837]
[1731835426385,0.10906255,91193.0,91187.0,0.109664]
[1731835426854,0.10906255,91193.0,91184.0,0.219336]
[1731835426855,0.10906255,91193.0,91188.0,0.11225501]
[1731835427288,0.10906255,91193.0,91188.0,0.00259201]
[1731835427497,0.109662,91189.0,91188.0,0.00259201]
[1731835427701,0.109665,91187.0,91170.0,0.21937]
[1731835427944,0.21872855,91186.0,91178.0,0.109674]
[1731835428579,0.21872855,91186.0,91175.0,0.219356]
[1731835428580,0.109669,91184.0,91179.0,0.00259165]
[1731835428841,0.10906255,91183.0,91179.0,0.00259165]
[1731835429051,0.10906255,91183.0,91178.0,0.109674]
[1731835429259,0.10906255,91183.0,91180.0,0.0025912]
[1731835429468,0.10906255,91183.0,91179.0,0.00259586]
[1731835429687,0.10906255,91183.0,91181.0,0.00259404]
[1731835429913,0.10906255,91183.0,91180.0,0.00259495]
[1731835430141,0.10906255,91183.0,91182.0,0.00259313]
[1731835430374,0.10906255,91183.0,91178.0,0.109674]
[1731835430375,0.10906255,91183.0,91181.0,0.00259385]
[1731835430626,0.10906255,91183.0,91178.0,0.109674]
[1731835430854,0.10906255,91183.0,91182.0,0.00259294]
[1731835431079,0.10906255,91183.0,91178.0,0.109674]
[1731835431312,0.10906255,91183.0,91177.0,0.109676]
[1731835431570,0.10906255,91183.0,91178.0,0.00259658]
[1731835432303,0.10906255,91183.0,91178.0,0.11227158]
[1731835432541,0.10906255,91183.0,91178.0,0.109675]
[1731835432542,0.10106255,91183.0,91178.0,0.109675]
[1731835432790,0.10106255,91183.0,91179.0,0.00259347]
[1731835433075,0.10106255,91183.0,91179.0,0.11226747]
[1731835433303,0.10106255,91183.0,91179.0,0.00259347]
[1731835434029,0.109672,91181.0,91179.0,0.00259347]
[1731835434262,0.438663,91186.0,91179.0,0.00259347]
[1731835434263,0.10906255,91180.0,91179.0,0.00259347]
[1731835434494,0.109674,91179.0,91178.0,0.0017132]
[1731835434759,0.21873655,91179.0,91178.0,0.0017132]
[1731835435255,0.10906255,91179.0,91178.0,0.0017132]
[1731835435726,0.21873655,91179.0,91178.0,0.00430769]
[1731835435972,0.21873655,91179.0,91178.0,0.0017132]
[1731835436433,0.21873655,91179.0,91178.0,0.00430769]
[1731835436649,0.21873655,91179.0,91178.0,0.0017132]
[1731835436862,0.21873655,91179.0,91178.0,0.00430769]
[1731835437079,0.21873655,91179.0,91178.0,0.0017132]
[1731835437309,0.21873655,91179.0,91178.0,0.00430769]
[1731835437547,0.21873655,91179.0,91178.0,0.0017132]
[1731835437783,0.21873655,91179.0,91178.0,0.00430769]
[1731835438030,0.21873655,91179.0,91178.0,0.0017132]
[1731835438276,0.21873655,91179.0,91178.0,0.00430769]
[1731835438496,0.21873655,91179.0,91178.0,0.0017132]
[1731835439912,0.10906255,91179.0,91178.0,0.00431621]
[1731835440139,0.10906255,91179.0,91178.0,0.0017132]
[1731835440357,0.21873655,91179.0,91178.0,0.0017132]
[1731835440566,0.21873655,91179.0,91178.0,0.00260301]
[1731835440810,0.109676,91178.0,91172.0,0.06614448]
[1731835441029,0.10906255,91177.0,91173.0,0.00844173]
[1731835441266,0.10906255,91177.0,91174.0,0.00844173]
[1731835441477,0.10906255,91177.0,91175.0,0.00844414]
[1731835441692,0.109682,91173.0,91166.0,0.06614448]
[1731835441948,0.10906255,91177.0,91167.0,0.11813225]
[1731835442167,0.27336419,91177.0,91168.0,0.00844425]
[1731835442424,0.27336419,91177.0,91169.0,0.00844425]
[1731835442644,0.27336419,91177.0,91157.0,0.0804]
[1731835442867,0.27336419,91177.0,91158.0,0.00844293]
[1731835442868,0.023,91175.0,91158.0,0.00844293]
[1731835443095,0.023,91175.0,91149.0,0.0804]
[1731835443096,0.109698,91159.0,91151.0,0.109707]
[1731835443314,0.109698,91159.0,91149.0,0.06614448]
[1731835443315,0.10906255,91158.0,91156.0,0.06614448]
[1731835444948,0.10906255,91158.0,91152.0,0.219413]
[1731835444949,0.10906255,91158.0,91154.0,0.109703]
[1731835445213,0.10906255,91158.0,91157.0,0.00232361]
[1731835445477,0.10906255,91158.0,91157.0,0.1097]
[1731835445690,0.10906255,91158.0,91157.0,0.11202361]
[1731835445905,0.10906255,91158.0,91157.0,0.00232361]
[1731835446138,0.10906255,91158.0,91157.0,0.11202361]
[1731835446385,0.10906255,91158.0,91157.0,0.1097]
[1731835446646,0.16430164,91166.0,91157.0,0.11202361]
[1731835446867,0.1269566,91187.0,91171.0,0.109683]
[1731835447134,0.1269566,91187.0,91167.0,0.109688]
[1731835447135,0.32841955,91176.0,91167.0,0.109688]
[1731835447348,0.10168,91174.0,91172.0,0.00231312]
[1731835447563,0.10168,91174.0,91168.0,0.109687]
[1731835447794,0.219347,91180.0,91165.0,0.10081365]
[1731835447795,0.10906255,91173.0,91165.0,0.00219367]
[1731835448019,0.1269566,91187.0,91163.0,0.219386]
[1731835448020,0.0008566,91187.0,91179.0,0.219348]
[1731835448257,0.0008566,91187.0,91180.0,0.219346]
[1731835448495,0.10906255,91186.0,91183.0,0.109669]
[1731835448935,0.10906255,91186.0,91173.0,0.10081365]
[1731835449172,0.109671,91182.0,91174.0,0.109679]
[1731835449402,0.109671,91182.0,91177.0,0.109676]
[1731835449403,0.10906255,91181.0,91177.0,0.109676]
[1731835449882,0.10906255,91181.0,91174.0,0.21936]
[1731835450094,0.10906255,91181.0,91179.0,0.109673]
[1731835450839,0.10906255,91181.0,91176.0,0.219355]
[1731835450840,0.10906255,91181.0,91180.0,0.109673]
[1731835451760,0.10906255,91181.0,91177.0,0.219353]
[1731835451761,0.0008566,91187.0,91186.0,0.109665]
[1731835452008,0.0008566,91187.0,91177.0,0.0461]
[1731835452288,0.0008566,91187.0,91173.0,0.10081365]
[1731835452289,0.10906255,91186.0,91178.0,0.00842869]
[1731835452510,0.219336,91184.0,91174.0,0.00843012]
[1731835452729,0.109677,91177.0,91165.0,0.14505484]
[1731835452964,0.10906255,91176.0,91166.0,0.00843238]
[1731835453197,0.10906255,91176.0,91174.0,0.109679]
[1731835453421,0.10906255,91176.0,91175.0,0.109679]
[1731835453645,0.10906255,91176.0,91175.0,0.11184003]
[1731835453859,0.10906255,91176.0,91175.0,0.1202721]
[1731835454785,0.10906255,91176.0,91175.0,0.11184003]
[1731835454983,0.10906255,91176.0,91175.0,0.00216103]
[1731835456093,0.21873955,91176.0,91175.0,0.00216103]
[1731835456527,0.10906255,91176.0,91166.0,0.219377]
[1731835456758,0.10906255,91176.0,91167.0,0.00843534]
[1731835456987,0.10906255,91176.0,91172.0,0.109681]
[1731835457454,0.10906255,91176.0,91173.0,0.00216922]
[1731835457722,0.10968,91175.0,91169.0,0.109685]
[1731835457952,0.109678,91176.0,91174.0,0.00215931]
[1731835458177,0.109677,91177.0,91171.0,0.109683]
[1731835458644,0.109677,91176.0,91160.0,0.109696]
[1731835458875,0.109677,91176.0,91154.0,0.17741365]
[1731835458876,0.10906255,91175.0,91172.0,0.00215802]
[1731835459111,0.10906255,91175.0,91161.0,0.00843788]
[1731835459112,0.15766255,91175.0,91151.0,0.0017136]
[1731835459338,0.023,91174.0,91152.0,0.00843912]
[1731835459572,0.219368,91171.0,91157.0,0.109699]
[1731835459802,0.219368,91171.0,91151.0,0.0017136]
[1731835459803,0.109694,91163.0,91155.0,0.219406]
[1731835460028,0.10906255,91162.0,91156.0,0.109701]
[1731835460254,0.10906255,91162.0,91156.0,0.11173115]
[1731835460481,0.10906255,91162.0,91161.0,0.109696]
[1731835460700,0.10906255,91162.0,91156.0,0.1028438]
[1731835460701,0.10906255,91162.0,91158.0,0.219399]
[1731835460945,0.10906255,91162.0,91161.0,0.11172068]
[1731835461163,0.10906255,91162.0,91161.0,0.109696]
[1731835461432,0.16430164,91179.0,91173.0,0.109681]
[1731835461656,0.16430164,91179.0,91161.0,0.00202559]
[1731835461657,0.10906255,91178.0,91168.0,0.10081365]
[1731835461894,0.10968,91174.0,91168.0,0.109687]
[1731835462111,0.10968,91174.0,91169.0,0.109685]
[1731835462112,0.10906255,91173.0,91169.0,0.109685]
[1731835462333,0.10968,91174.0,91169.0,0.109685]
[1731835462553,0.21874255,91174.0,91169.0,0.109685]
[1731835463001,0.10906255,91174.0,91161.0,0.219392]
[1731835463450,0.10906255,91174.0,91173.0,0.109681]
[1731835463917,0.10906255,91174.0,91172.0,0.109682]
[1731835464139,0.10906255,91174.0,91170.0,0.109684]
[1731835464365,0.10906255,91174.0,91171.0,0.109683]
[1731835464584,0.10906255,91174.0,91168.0,0.219374]
[1731835464838,0.10906255,91174.0,91172.0,0.109681]
[1731835465343,0.10906255,91174.0,91173.0,0.109681]
[1731835465571,0.10906255,91174.0,91171.0,0.109683]
[1731835466032,0.10906255,91174.0,91168.0,0.219374]
[1731835466245,0.10906255,91174.0,91173.0,0.109681]
[1731835467169,0.219325,91189.0,91168.0,0.32018765]
[1731835467170,0.109667,91185.0,91179.0,0.109673]
[1731835467392,0.21873055,91184.0,91179.0,0.109673]
[1731835467628,0.21873055,91184.0,91180.0,0.00203686]
[1731835468073,0.109669,91183.0,91180.0,0.00203686]
[1731835468297,0.10906255,91182.0,91180.0,0.00203686]
[1731835468533,0.109671,91181.0,91180.0,0.00203686]
[1731835468794,0.10906255,91181.0,91175.0,0.109679]
[1731835469032,0.21873555,91180.0,91172.0,0.219364]
[1731835469263,0.10906255,91180.0,91179.0,0.109674]
[1731835470425,0.10906255,91180.0,91178.0,0.109675]
[1731835471282,0.267919,91192.0,91186.0,0.109665]
[1731835471283,0.0486,91192.0,91186.0,0.109665]
[1731835471501,0.10991915,91187.0,91186.0,0.109665]